[Event "*** Titled Tuesday 3|2 Blitz"]
[Site "Chess.com"]
[Date "2015.04.07"]
[Round "5"]
[White "1stSecond"]
[Black "bugsbunny444"]
[Result "1-0"]
[WhiteElo "2401"]
[BlackElo "2298"]
[TimeControl "180+2"]
[EndTime "12:01:46 PDT"]
[Termination "1stSecond won on time"]

1. d4 {[%clk 0:02:59.7]} 1... e6 {[%clk 0:02:59.7]} 2. c4 {[%clk 0:03:00]} 2...
b6 {[%clk 0:03:01.2]} 3. Nf3 {[%clk 0:02:59.6]} 3... Bb7 {[%clk 0:03:02.6]} 4.
Qc2 {[%clk 0:03:00.7]} 4... f5 {[%clk 0:02:56.3]} 5. Nbd2 {[%clk 0:03:01.1]}
5... Nf6 {[%clk 0:02:56.7]} 6. g3 {[%clk 0:03:02.2]} 6... Nc6 {[%clk 0:02:42.8]}
7. e3 {[%clk 0:02:55.8]} 7... Be7 {[%clk 0:02:29.7]} 8. Bg2 {[%clk 0:02:56]}
8... O-O {[%clk 0:02:20.1]} 9. O-O {[%clk 0:02:56.9]} 9... Ne4 {[%clk
0:02:17.2]} 10. a3 {[%clk 0:02:54.9]} 10... Nb8 {[%clk 0:01:21.5]} 11. b4 {[%clk
0:02:47.6]} 11... a5 {[%clk 0:01:15]} 12. b5 {[%clk 0:02:48.3]} 12... d6 {[%clk
0:01:14.4]} 13. Ne1 {[%clk 0:02:44]} 13... Nxd2 {[%clk 0:01:11.3]} 14. Bxb7
{[%clk 0:02:43.9]} 14... Ra7 {[%clk 0:01:02.4]} 15. Bxd2 {[%clk 0:02:38.1]}
15... Rxb7 {[%clk 0:01:03.5]} 16. Nd3 {[%clk 0:02:36.1]} 16... Bf6 {[%clk
0:00:46.7]} 17. Bc3 {[%clk 0:02:33.6]} 17... Nd7 {[%clk 0:00:40.9]} 18. Rad1
{[%clk 0:02:32.5]} 18... Rb8 {[%clk 0:00:39]} 19. Nf4 {[%clk 0:02:31.9]} 19...
Qe7 {[%clk 0:00:31.8]} 20. e4 {[%clk 0:02:32.9]} 20... Bg5 {[%clk 0:00:21.3]}
21. Bd2 {[%clk 0:02:21.8]} 21... Bxf4 {[%clk 0:00:20.1]} 22. Bxf4 {[%clk
0:02:21.8]} 22... e5 {[%clk 0:00:21.5]} 23. dxe5 {[%clk 0:02:14.9]} 23... dxe5
{[%clk 0:00:23.4]} 24. Bc1 {[%clk 0:02:15.7]} 24... f4 {[%clk 0:00:18.6]} 25.
Qd3 {[%clk 0:02:15]} 25... Rbd8 {[%clk 0:00:14.6]} 26. Qd5+ {[%clk 0:02:13.7]}
26... Kh8 {[%clk 0:00:15.9]} 27. gxf4 {[%clk 0:02:14.6]} 27... exf4 {[%clk
0:00:12]} 28. Bb2 {[%clk 0:02:10.9]} 28... Nc5 {[%clk 0:00:10]} 29. Qe5 {[%clk
0:02:07.5]} 29... Qf7 {[%clk 0:00:05.9]} 30. Rd5 {[%clk 0:02:04.3]} 30... Qg6+
{[%clk 0:00:04.8]} 31. Kh1 {[%clk 0:02:02.5]} 31... Qxe4+ {[%clk 0:00:05.7]} 32.
Qxe4 {[%clk 0:02:02]} 32... Nxe4 {[%clk 0:00:07.6]} 33. f3 {[%clk 0:02:01.9]}
33... Nc5 {[%clk 0:00:04]} 34. Rfd1 {[%clk 0:02:01]} 34... Rxd5 {[%clk
0:00:04.7]} 35. Rxd5 {[%clk 0:02:02.9]} 35... Kg8 {[%clk 0:00:05.8]} 36. Be5
{[%clk 0:02:02.4]} 36... Rc8 {[%clk 0:00:04.4]} 37. Bxf4 {[%clk 0:02:03.4]}
37... c6 {[%clk 0:00:04]} 38. Rd6 {[%clk 0:02:01.5]} 38... cxb5 {[%clk
0:00:03.3]} 39. cxb5 {[%clk 0:02:03.4]} 39... Na4 {[%clk 0:00:03.2]} 40. Rc6
{[%clk 0:02:00.4]} 1-0

[Event "*** Titled Tuesday 3|2 Blitz"]
[Site "Chess.com"]
[Date "2015.04.07"]
[Round "5"]
[White "guillead1"]
[Black "GasconJR"]
[Result "0-1"]
[WhiteElo "2375"]
[BlackElo "2273"]
[TimeControl "180+2"]
[EndTime "12:02:03 PDT"]
[Termination "GasconJR won by resignation"]

1. d4 {[%clk 0:02:13.3]} 1... Nf6 {[%clk 0:03:00.2]} 2. c4 {[%clk 0:02:14.9]}
2... g6 {[%clk 0:03:01]} 3. Nc3 {[%clk 0:02:14.7]} 3... Bg7 {[%clk 0:03:02.1]}
4. e4 {[%clk 0:02:16.3]} 4... d6 {[%clk 0:03:03.5]} 5. f4 {[%clk 0:02:17.3]}
5... O-O {[%clk 0:02:59.3]} 6. Nf3 {[%clk 0:02:18.6]} 6... c5 {[%clk 0:02:56.8]}
7. d5 {[%clk 0:02:19.3]} 7... e6 {[%clk 0:02:58.1]} 8. Be2 {[%clk 0:02:19]} 8...
exd5 {[%clk 0:02:58.5]} 9. cxd5 {[%clk 0:02:20.9]} 9... Bg4 {[%clk 0:02:59.8]}
10. O-O {[%clk 0:02:20.8]} 10... Nbd7 {[%clk 0:03:00.4]} 11. a4 {[%clk 0:02:21]}
11... Re8 {[%clk 0:03:00.1]} 12. h3 {[%clk 0:02:22]} 12... Bxf3 {[%clk
0:02:55.3]} 13. Bxf3 {[%clk 0:02:23.9]} 13... c4 {[%clk 0:02:55.1]} 14. Be3
{[%clk 0:02:24.5]} 14... Rc8 {[%clk 0:02:51.9]} 15. Kh1 {[%clk 0:02:17.8]} 15...
Nc5 {[%clk 0:02:51.9]} 16. Bxc5 {[%clk 0:02:14.3]} 16... Rxc5 {[%clk 0:02:51.9]}
17. Qc2 {[%clk 0:02:10.8]} 17... Nd7 {[%clk 0:02:50.5]} 18. Bg4 {[%clk
0:02:09.2]} 18... a6 {[%clk 0:02:49.3]} 19. Rae1 {[%clk 0:02:05.9]} 19... b5
{[%clk 0:02:49.8]} 20. axb5 {[%clk 0:02:02.3]} 20... axb5 {[%clk 0:02:50.4]} 21.
Qf2 {[%clk 0:01:50.7]} 21... b4 {[%clk 0:02:48.6]} 22. Nd1 {[%clk 0:01:39.8]}
22... c3 {[%clk 0:02:43.3]} 23. bxc3 {[%clk 0:01:40.9]} 23... bxc3 {[%clk
0:02:44.1]} 24. Qc2 {[%clk 0:01:37.8]} 24... Nb6 {[%clk 0:02:26.5]} 25. Nf2
{[%clk 0:01:31.7]} 25... Rc4 {[%clk 0:02:06.8]} 26. Be2 {[%clk 0:01:14.1]} 26...
Rb4 {[%clk 0:02:03.1]} 27. Rb1 {[%clk 0:01:09.7]} 27... Rb2 {[%clk 0:01:52.5]}
28. Rxb2 {[%clk 0:01:08.9]} 28... cxb2 {[%clk 0:01:53.5]} 29. Bb5 {[%clk
0:01:04.4]} 29... Re7 {[%clk 0:01:50.8]} 30. Bc6 {[%clk 0:00:57.8]} 30... Ra7
{[%clk 0:01:33.7]} 31. Rb1 {[%clk 0:00:43.3]} 31... Ra1 {[%clk 0:01:33.6]} 32.
Nd3 {[%clk 0:00:42.2]} 32... Nc4 {[%clk 0:01:33.1]} 33. Nxb2 {[%clk 0:00:24.9]}
33... Na3 {[%clk 0:01:16.2]} 34. Rxa1 {[%clk 0:00:24.9]} 34... Nxc2 {[%clk
0:01:17.2]} 35. Ra8 {[%clk 0:00:25.3]} 35... Qxa8 {[%clk 0:01:18.3]} 36. Bxa8
{[%clk 0:00:27.2]} 36... Bxb2 {[%clk 0:01:19.3]} 37. e5 {[%clk 0:00:28.3]} 37...
dxe5 {[%clk 0:01:19.1]} 38. d6 {[%clk 0:00:29.2]} 38... exf4 {[%clk 0:01:19]}
39. d7 {[%clk 0:00:29]} 39... Bf6 {[%clk 0:01:19.1]} 0-1

[Event "*** Titled Tuesday 3|2 Blitz"]
[Site "Chess.com"]
[Date "2015.04.07"]
[Round "5"]
[White "Dlugy"]
[Black "MITerryble"]
[Result "1-0"]
[WhiteElo "2533"]
[BlackElo "2480"]
[TimeControl "180+2"]
[EndTime "12:02:19 PDT"]
[Termination "Dlugy won by resignation"]

1. d4 {[%clk 0:03:01.9]} 1... e6 {[%clk 0:03:01.1]} 2. c4 {[%clk 0:03:02.9]}
2... Bb4+ {[%clk 0:03:01.2]} 3. Bd2 {[%clk 0:03:03.9]} 3... Qe7 {[%clk
0:03:02.3]} 4. Nf3 {[%clk 0:03:03.1]} 4... Nf6 {[%clk 0:03:02.9]} 5. g3 {[%clk
0:03:04.4]} 5... Nc6 {[%clk 0:03:03.7]} 6. Bg2 {[%clk 0:03:05.5]} 6... Bxd2+
{[%clk 0:03:04.2]} 7. Nbxd2 {[%clk 0:03:07.4]} 7... d6 {[%clk 0:03:04.6]} 8. O-O
{[%clk 0:03:09]} 8... O-O {[%clk 0:03:05.5]} 9. e4 {[%clk 0:03:09.4]} 9... e5
{[%clk 0:03:06.9]} 10. d5 {[%clk 0:03:11.1]} 10... Nb8 {[%clk 0:03:07.1]} 11. b4
{[%clk 0:03:12.7]} 11... a5 {[%clk 0:03:07.7]} 12. a3 {[%clk 0:03:14.2]} 12...
Na6 {[%clk 0:03:07.4]} 13. Ne1 {[%clk 0:03:07.3]} 13... Bg4 {[%clk 0:02:44.3]}
14. f3 {[%clk 0:03:08.3]} 14... Bd7 {[%clk 0:02:45.2]} 15. Nd3 {[%clk
0:03:08.9]} 15... b6 {[%clk 0:02:40.7]} 16. Qc2 {[%clk 0:03:09.2]} 16... Rfb8
{[%clk 0:02:28.8]} 17. Rfc1 {[%clk 0:03:07]} 17... Ne8 {[%clk 0:02:23.4]} 18.
Qc3 {[%clk 0:03:04.8]} 18... f5 {[%clk 0:02:16.3]} 19. f4 {[%clk 0:02:58.2]}
19... exf4 {[%clk 0:02:09.1]} 20. Nxf4 {[%clk 0:02:59.3]} 20... Qf6 {[%clk
0:01:55.6]} 21. Rab1 {[%clk 0:02:49.6]} 21... Qxc3 {[%clk 0:01:36.7]} 22. Rxc3
{[%clk 0:02:50.6]} 22... Nf6 {[%clk 0:01:38.6]} 23. Ne6 {[%clk 0:02:41.9]} 23...
fxe4 {[%clk 0:01:26.9]} 24. Nxe4 {[%clk 0:02:41.5]} 24... Nxe4 {[%clk
0:01:16.5]} 25. Bxe4 {[%clk 0:02:42.6]} 25... Re8 {[%clk 0:01:18.1]} 26. Bf5
{[%clk 0:02:43.8]} 26... Re7 {[%clk 0:01:06.8]} 27. Rf3 {[%clk 0:02:27.5]} 27...
Rae8 {[%clk 0:00:56.5]} 28. Bh3 {[%clk 0:02:19.7]} 28... Bxe6 {[%clk 0:00:17.2]}
29. Bxe6+ {[%clk 0:02:08.6]} 29... Kh8 {[%clk 0:00:18.5]} 30. Rbf1 {[%clk
0:02:09.6]} 30... g6 {[%clk 0:00:18.3]} 31. Rf8+ {[%clk 0:02:09.7]} 31... Kg7
{[%clk 0:00:17.3]} 32. R1f7+ {[%clk 0:02:08.6]} 32... Kh6 {[%clk 0:00:15]} 33.
Rxe8 {[%clk 0:02:00.9]} 33... Rxe8 {[%clk 0:00:15.6]} 34. b5 {[%clk 0:02:01.9]}
34... Nc5 {[%clk 0:00:16.3]} 35. Rxc7 {[%clk 0:02:03.1]} 35... Nxe6 {[%clk
0:00:13.7]} 36. dxe6 {[%clk 0:02:04.5]} 36... Rxe6 {[%clk 0:00:15.6]} 37. Rc6
{[%clk 0:02:05.7]} 37... Re1+ {[%clk 0:00:11.8]} 38. Kf2 {[%clk 0:02:06.4]}
38... Rc1 {[%clk 0:00:13.2]} 39. Ke3 {[%clk 0:02:06]} 39... Rc3+ {[%clk
0:00:09.2]} 40. Kd4 {[%clk 0:02:07.1]} 40... Rxa3 {[%clk 0:00:11.1]} 41. Rxd6
{[%clk 0:02:06.9]} 41... Ra2 {[%clk 0:00:11.7]} 42. Rxb6 {[%clk 0:02:08.1]}
42... Rxh2 {[%clk 0:00:11]} 43. Ra6 {[%clk 0:02:06.4]} 43... Rd2+ {[%clk
0:00:11.8]} 44. Kc5 {[%clk 0:02:05.7]} 44... Kg5 {[%clk 0:00:06.2]} 45. Rxa5
{[%clk 0:02:05.5]} 45... Kg4 {[%clk 0:00:06.7]} 46. Ra3 {[%clk 0:02:06]} 46...
Rd8 {[%clk 0:00:06.4]} 47. b6 {[%clk 0:02:07]} 47... Rc8+ {[%clk 0:00:07.3]} 48.
Kb5 {[%clk 0:02:08.2]} 48... Rf8 {[%clk 0:00:08.2]} 49. c5 {[%clk 0:02:08.9]}
49... Rf1 {[%clk 0:00:07.9]} 50. Rb3 {[%clk 0:02:09.1]} 1-0

[Event "*** Titled Tuesday 3|2 Blitz"]
[Site "Chess.com"]
[Date "2015.04.07"]
[Round "5"]
[White "chessloveyou"]
[Black "gumersindo"]
[Result "1-0"]
[WhiteElo "2120"]
[BlackElo "2108"]
[TimeControl "180+2"]
[EndTime "12:02:23 PDT"]
[Termination "chessloveyou won by checkmate"]

1. d4 {[%clk 0:02:26]} 1... d5 {[%clk 0:02:59.5]} 2. c4 {[%clk 0:02:26.4]} 2...
c6 {[%clk 0:02:58.1]} 3. Nc3 {[%clk 0:02:22]} 3... Nf6 {[%clk 0:02:57.1]} 4. e3
{[%clk 0:02:21.1]} 4... dxc4 {[%clk 0:02:55.2]} 5. Bxc4 {[%clk 0:02:20.7]} 5...
Bf5 {[%clk 0:02:56.7]} 6. Nf3 {[%clk 0:02:20.1]} 6... e6 {[%clk 0:02:55.1]} 7.
O-O {[%clk 0:02:20.3]} 7... Nbd7 {[%clk 0:02:53.1]} 8. a4 {[%clk 0:02:18.2]}
8... h6 {[%clk 0:02:48.3]} 9. Re1 {[%clk 0:02:17]} 9... Ne4 {[%clk 0:02:46]} 10.
Nd2 {[%clk 0:02:06.9]} 10... Nxc3 {[%clk 0:02:42.3]} 11. bxc3 {[%clk 0:02:06.7]}
11... Be7 {[%clk 0:02:38]} 12. e4 {[%clk 0:01:54.8]} 12... Bg6 {[%clk
0:02:37.5]} 13. e5 {[%clk 0:01:55.4]} 13... O-O {[%clk 0:02:35.2]} 14. Ne4
{[%clk 0:01:54.9]} 14... c5 {[%clk 0:02:30.9]} 15. a5 {[%clk 0:01:24]} 15... Rc8
{[%clk 0:02:25.8]} 16. Bb5 {[%clk 0:01:19.2]} 16... cxd4 {[%clk 0:02:24.5]} 17.
cxd4 {[%clk 0:01:19.9]} 17... Nb8 {[%clk 0:02:22.4]} 18. Ba3 {[%clk 0:01:16.7]}
18... Bxa3 {[%clk 0:02:14.4]} 19. Rxa3 {[%clk 0:01:16.9]} 19... Qd5 {[%clk
0:02:15.8]} 20. Nd6 {[%clk 0:01:08.6]} 20... Rc7 {[%clk 0:02:12.1]} 21. Qd2
{[%clk 0:00:47.4]} 21... Nc6 {[%clk 0:02:07.8]} 22. Rd1 {[%clk 0:00:40.8]} 22...
Bh5 {[%clk 0:01:34.2]} 23. Bc4 {[%clk 0:00:38.5]} 23... Bxd1 {[%clk 0:01:25.4]}
24. Bxd5 {[%clk 0:00:37]} 24... exd5 {[%clk 0:01:26.4]} 25. Qxd1 {[%clk
0:00:37.4]} 25... f6 {[%clk 0:01:26.3]} 26. e6 {[%clk 0:00:35.4]} 26... Rd8
{[%clk 0:01:26.1]} 27. Nf5 {[%clk 0:00:32.9]} 27... g6 {[%clk 0:01:24.5]} 28.
Qg4 {[%clk 0:00:29.8]} 28... Kh7 {[%clk 0:01:22.4]} 29. Rg3 {[%clk 0:00:29.4]}
29... Rg8 {[%clk 0:01:16.7]} 30. Nd6 {[%clk 0:00:27.8]} 30... Ne5 {[%clk
0:01:12.5]} 31. Qd1 {[%clk 0:00:22.2]} 31... Nc6 {[%clk 0:01:10.5]} 32. h4
{[%clk 0:00:19.6]} 32... Nxa5 {[%clk 0:01:07.3]} 33. h5 {[%clk 0:00:18.5]} 33...
Re7 {[%clk 0:01:02.6]} 34. hxg6+ {[%clk 0:00:18.6]} 34... Kh8 {[%clk 0:01:03.2]}
35. Nf7+ {[%clk 0:00:18.8]} 35... Kg7 {[%clk 0:01:03.9]} 36. Qh5 {[%clk
0:00:19.6]} 36... Rxe6 {[%clk 0:01:00]} 37. Qxh6# {[%clk 0:00:19.5]} 1-0

[Event "*** Titled Tuesday 3|2 Blitz"]
[Site "Chess.com"]
[Date "2015.04.07"]
[Round "5"]
[White "DrHolmes13"]
[Black "WanderingPuppet"]
[Result "1-0"]
[WhiteElo "2219"]
[BlackElo "2115"]
[TimeControl "180+2"]
[EndTime "12:02:33 PDT"]
[Termination "DrHolmes13 won on time"]

1. d4 {[%clk 0:03:01.9]} 1... Nf6 {[%clk 0:03:00.8]} 2. c4 {[%clk 0:03:03.2]}
2... g6 {[%clk 0:03:02.7]} 3. Nc3 {[%clk 0:03:04.8]} 3... Bg7 {[%clk 0:03:04.6]}
4. e4 {[%clk 0:03:06.5]} 4... d6 {[%clk 0:03:06.5]} 5. f3 {[%clk 0:03:07.9]}
5... O-O {[%clk 0:03:08.4]} 6. Be3 {[%clk 0:03:09]} 6... c5 {[%clk 0:03:10.3]}
7. Nge2 {[%clk 0:03:08.5]} 7... Nc6 {[%clk 0:03:11.1]} 8. d5 {[%clk 0:02:51.9]}
8... Ne5 {[%clk 0:03:12.2]} 9. Ng3 {[%clk 0:02:52.5]} 9... h5 {[%clk 0:03:13.7]}
10. Be2 {[%clk 0:02:44.9]} 10... h4 {[%clk 0:03:14.7]} 11. Nf1 {[%clk
0:02:45.8]} 11... a6 {[%clk 0:03:14.6]} 12. a4 {[%clk 0:02:43.9]} 12... Nh7
{[%clk 0:02:11.9]} 13. Nd2 {[%clk 0:02:34.3]} 13... f5 {[%clk 0:02:12.1]} 14.
exf5 {[%clk 0:02:27.1]} 14... gxf5 {[%clk 0:02:11.6]} 15. O-O {[%clk 0:02:23.1]}
15... Kh8 {[%clk 0:01:47.9]} 16. Kh1 {[%clk 0:02:13.7]} 16... Bd7 {[%clk
0:01:40.8]} 17. Qc2 {[%clk 0:02:02.3]} 17... Qe8 {[%clk 0:01:26.2]} 18. Bf2
{[%clk 0:01:46.7]} 18... Qh5 {[%clk 0:01:13.8]} 19. f4 {[%clk 0:01:43.4]} 19...
Ng4 {[%clk 0:01:14.7]} 20. Bg1 {[%clk 0:01:43.8]} 20... Qh6 {[%clk 0:01:08.4]}
21. Nf3 {[%clk 0:01:08.9]} 21... Nhf6 {[%clk 0:00:50.7]} 22. Ng5 {[%clk
0:01:08.6]} 22... Nh5 {[%clk 0:00:51.2]} 23. Bxg4 {[%clk 0:01:03.7]} 23... fxg4
{[%clk 0:00:48.7]} 24. h3 {[%clk 0:00:52]} 24... Nxf4 {[%clk 0:00:33.6]} 25.
Nce4 {[%clk 0:00:43.8]} 25... gxh3 {[%clk 0:00:25]} 26. gxh3 {[%clk 0:00:44.2]}
26... Bxh3 {[%clk 0:00:18]} 27. Rxf4 {[%clk 0:00:41.1]} 27... Rxf4 {[%clk
0:00:11.3]} 28. Be3 {[%clk 0:00:37.5]} 28... Raf8 {[%clk 0:00:08.3]} 29. Bxf4
{[%clk 0:00:38.2]} 29... Rxf4 {[%clk 0:00:09.3]} 30. Nxh3 {[%clk 0:00:39.4]}
30... Rf3 {[%clk 0:00:08.5]} 31. Neg5 {[%clk 0:00:38.5]} 31... Kg8 {[%clk
0:00:05.7]} 32. Nxf3 {[%clk 0:00:39]} 1-0

[Event "*** Titled Tuesday 3|2 Blitz"]
[Site "Chess.com"]
[Date "2015.04.07"]
[Round "5"]
[White "SCIM"]
[Black "darkknight123456"]
[Result "0-1"]
[WhiteElo "2030"]
[BlackElo "2066"]
[TimeControl "180+2"]
[EndTime "12:02:48 PDT"]
[Termination "darkknight123456 won by checkmate"]

1. d4 {[%clk 0:03:01.9]} 1... Nf6 {[%clk 0:03:00.6]} 2. c4 {[%clk 0:03:02.4]}
2... c5 {[%clk 0:03:01.3]} 3. d5 {[%clk 0:03:02.6]} 3... e6 {[%clk 0:03:02.3]}
4. Nc3 {[%clk 0:03:01.9]} 4... exd5 {[%clk 0:03:03.4]} 5. cxd5 {[%clk
0:03:03.4]} 5... d6 {[%clk 0:03:04.7]} 6. e4 {[%clk 0:03:04.9]} 6... g6 {[%clk
0:03:06.1]} 7. Nge2 {[%clk 0:03:05.9]} 7... Bg7 {[%clk 0:03:07.1]} 8. Ng3 {[%clk
0:03:07.2]} 8... h5 {[%clk 0:03:08.4]} 9. Be2 {[%clk 0:03:06.4]} 9... h4 {[%clk
0:03:09.6]} 10. Nf1 {[%clk 0:03:05.3]} 10... h3 {[%clk 0:03:11]} 11. g3 {[%clk
0:03:03.9]} 11... O-O {[%clk 0:03:12]} 12. Be3 {[%clk 0:02:56.5]} 12... Re8
{[%clk 0:03:06.6]} 13. Nd2 {[%clk 0:02:56.5]} 13... a6 {[%clk 0:02:42.3]} 14. a4
{[%clk 0:02:56]} 14... Nbd7 {[%clk 0:02:43.2]} 15. O-O {[%clk 0:02:53.6]} 15...
Ne5 {[%clk 0:02:42.2]} 16. f3 {[%clk 0:02:53.3]} 16... Rb8 {[%clk 0:01:59.1]}
17. a5 {[%clk 0:02:50.9]} 17... b5 {[%clk 0:01:58.3]} 18. axb6 {[%clk 0:02:51]}
18... Rxb6 {[%clk 0:01:56.7]} 19. Ra2 {[%clk 0:02:47.2]} 19... Nh7 {[%clk
0:01:17.6]} 20. f4 {[%clk 0:02:35]} 20... Nd7 {[%clk 0:01:17.4]} 21. Bf3 {[%clk
0:02:32.6]} 21... Rb4 {[%clk 0:01:10.6]} 22. Qc2 {[%clk 0:02:20.3]} 22... f5
{[%clk 0:01:07.8]} 23. Bf2 {[%clk 0:02:10.1]} 23... fxe4 {[%clk 0:00:57.4]} 24.
Ndxe4 {[%clk 0:02:03.8]} 24... Ndf6 {[%clk 0:00:56.1]} 25. Nxf6+ {[%clk
0:01:50.3]} 25... Qxf6 {[%clk 0:00:56.5]} 26. Qd2 {[%clk 0:01:34.3]} 26... g5
{[%clk 0:00:41]} 27. Bh5 {[%clk 0:01:27.5]} 27... Rf8 {[%clk 0:00:30.3]} 28. Be3
{[%clk 0:01:21.4]} 28... g4 {[%clk 0:00:30]} 29. f5 {[%clk 0:01:08.3]} 29...
Bxf5 {[%clk 0:00:21]} 30. Rxa6 {[%clk 0:01:08.3]} 30... Qe5 {[%clk 0:00:18.7]}
31. Nd1 {[%clk 0:00:48.1]} 31... Nf6 {[%clk 0:00:14.1]} 32. Bf4 {[%clk
0:00:42.1]} 32... Qe4 {[%clk 0:00:10.5]} 33. Bxd6 {[%clk 0:00:31.7]} 33... Nxh5
{[%clk 0:00:11.2]} 34. Bxf8 {[%clk 0:00:31.9]} 34... Bd4+ {[%clk 0:00:12.1]} 35.
Qxd4 {[%clk 0:00:23.8]} 35... Qg2# {[%clk 0:00:12]} 0-1

[Event "*** Titled Tuesday 3|2 Blitz"]
[Site "Chess.com"]
[Date "2015.04.07"]
[Round "5"]
[White "chesstatour"]
[Black "AnastasiaProtopopova"]
[Result "1-0"]
[WhiteElo "1955"]
[BlackElo "1812"]
[TimeControl "180+2"]
[EndTime "12:04:23 PDT"]
[Termination "chesstatour won by resignation"]

1. d4 {[%clk 0:03:01.9]} 1... Nf6 {[%clk 0:02:58.6]} 2. c4 {[%clk 0:03:01.8]}
2... e6 {[%clk 0:02:59.3]} 3. Nf3 {[%clk 0:03:01.9]} 3... b6 {[%clk 0:02:59.8]}
4. Nc3 {[%clk 0:02:59.6]} 4... Bb4 {[%clk 0:02:58.5]} 5. Qc2 {[%clk 0:02:59.1]}
5... Bb7 {[%clk 0:02:54.5]} 6. g3 {[%clk 0:02:57.5]} 6... Nc6 {[%clk 0:02:36.3]}
7. Be3 {[%clk 0:01:42.2]} 7... d5 {[%clk 0:02:13.3]} 8. Bg2 {[%clk 0:01:19.9]}
8... O-O {[%clk 0:02:03.9]} 9. O-O {[%clk 0:01:19.2]} 9... dxc4 {[%clk
0:02:04.8]} 10. Ne5 {[%clk 0:01:15.4]} 10... Na5 {[%clk 0:02:02.6]} 11. Bxb7
{[%clk 0:01:13.7]} 11... Nxb7 {[%clk 0:01:55.3]} 12. Nxc4 {[%clk 0:00:29.2]}
12... Nd6 {[%clk 0:01:44.9]} 13. Ne5 {[%clk 0:00:26.4]} 13... Bxc3 {[%clk
0:01:39.2]} 14. bxc3 {[%clk 0:00:26]} 14... Nd5 {[%clk 0:01:33.4]} 15. Bd2
{[%clk 0:00:25.9]} 15... b5 {[%clk 0:01:30.1]} 16. c4 {[%clk 0:00:24.3]} 16...
Nxc4 {[%clk 0:01:21.8]} 17. Nxc4 {[%clk 0:00:26.2]} 17... bxc4 {[%clk
0:01:23.5]} 18. Qxc4 {[%clk 0:00:26.9]} 18... Nb6 {[%clk 0:01:25]} 19. Qd3
{[%clk 0:00:21.8]} 19... Qe7 {[%clk 0:01:21.9]} 20. Rab1 {[%clk 0:00:20.9]}
20... c5 {[%clk 0:01:21.4]} 21. dxc5 {[%clk 0:00:20.3]} 21... Qxc5 {[%clk
0:01:21.8]} 22. Bb4 {[%clk 0:00:20.5]} 22... Qc7 {[%clk 0:01:06.4]} 23. Rfc1
{[%clk 0:00:17.1]} 23... Qe5 {[%clk 0:00:55.5]} 24. Bxf8 {[%clk 0:00:15.9]}
24... Rxf8 {[%clk 0:00:56.7]} 25. Qb5 {[%clk 0:00:13.9]} 25... Qd6 {[%clk
0:00:52.1]} 26. a4 {[%clk 0:00:14.5]} 26... Nd5 {[%clk 0:00:49.2]} 27. e4 {[%clk
0:00:12.5]} 27... Ne7 {[%clk 0:00:29.9]} 28. Qc5 {[%clk 0:00:10.9]} 28... Qd7
{[%clk 0:00:27.6]} 29. Rd1 {[%clk 0:00:11.5]} 29... Qc8 {[%clk 0:00:12.3]} 30.
Qxe7 {[%clk 0:00:10.7]} 30... Qc2 {[%clk 0:00:12.2]} 31. Qb4 {[%clk 0:00:10.7]}
31... h5 {[%clk 0:00:11.4]} 32. Rbc1 {[%clk 0:00:11.6]} 32... Qe2 {[%clk
0:00:10.8]} 33. Re1 {[%clk 0:00:09.5]} 33... Qf3 {[%clk 0:00:11.4]} 34. Rc3
{[%clk 0:00:08.6]} 34... Qg4 {[%clk 0:00:11.2]} 35. f3 {[%clk 0:00:08.4]} 35...
Qh3 {[%clk 0:00:11.5]} 36. Qd4 {[%clk 0:00:08.2]} 36... Rb8 {[%clk 0:00:11.1]}
37. Qf2 {[%clk 0:00:08]} 37... h4 {[%clk 0:00:11.6]} 38. Qg2 {[%clk 0:00:05.6]}
38... Qxg2+ {[%clk 0:00:10.3]} 39. Kxg2 {[%clk 0:00:06.9]} 39... Rb2+ {[%clk
0:00:11.1]} 40. Kh3 {[%clk 0:00:07.9]} 40... hxg3 {[%clk 0:00:12.8]} 41. hxg3
{[%clk 0:00:09]} 41... Rb4 {[%clk 0:00:14]} 42. Ra3 {[%clk 0:00:09.3]} 42... Kh7
{[%clk 0:00:11.9]} 43. a5 {[%clk 0:00:10.7]} 43... a6 {[%clk 0:00:12.2]} 44. Rd1
{[%clk 0:00:09.6]} 44... g5 {[%clk 0:00:13.2]} 45. Rd6 {[%clk 0:00:08.4]} 45...
Kg6 {[%clk 0:00:11.6]} 46. Rxa6 {[%clk 0:00:09.2]} 46... Rb2 {[%clk 0:00:12.1]}
47. Ra8 {[%clk 0:00:08.8]} 47... f5 {[%clk 0:00:13.1]} 48. exf5+ {[%clk
0:00:08.3]} 48... exf5 {[%clk 0:00:14]} 49. Ra6+ {[%clk 0:00:08.8]} 49... Kh5
{[%clk 0:00:15.2]} 50. g4+ {[%clk 0:00:09]} 1-0